Workbook

Sheet Main
A1: Enter Values in the Green Fields | G1: Cell | H1: Player DV | I1: Initialization Range | K1: Initial OF Low = | L1: -345.9968893 | N1: Iter to switch MH2L = | O1: =ROUND((LN(1-O3)/LN(1-O2^D4)-D9)/D4,0) -> 84
A2: Edit code in model, assign, and constraint subroutines and declarations. | G2: Indices | H2: Values | I2: Low | J2: High | K2: Initial OF High = | L2: 471.2754776 | N2: Draw fraction of Range = | O2: 0.4
G3: x1 | H3: -2.914768554 | I3: -5 | J3: 5 | N3: Confidence = | O3: 0.9
A4: Number of Adjustable Model Coefficients (max 10) | C4: Nvar = | D4: 6 | E4: Trial = | F4: 100 | G4: x2 | H4: -2.89701061 | I4: -5 | J4: 5 | K4: Convergence | N4: Best Fraction = | O4: 0.05
A5: Trial Starting Number | C5: Start Num = | D5: 1 | E5: Iteration = | F5: 91 | G5: x3 | H5: -2.90111006 | I5: -5 | J5: 5 | K5: 1=range on OF | N5: Desired N Trials = | O5: =ROUND(LN(1-O3)/LN(1-O4),0) -> 45
A6: Trial Ending Number | C6: EndNum = | D6: 100 | E6: NOFE = | F6: 2909 | G6: x4 | H6: -2.907816065 | I6: -5 | J6: 5 | K6: 2=rms on OF values | N6: Recommended N Initializations = | O6: =ROUND(LN(1-O3)/LN(1-O2^D4),0) -> 561
A7: Maximum Iterations to "give-up" regression | C7: Max Iter = | D7: 1000 | G7: x5 | H7: -2.903927636 | I7: -5 | J7: 5 | K7: 3=rms/OFlow
A8: Window Amplification | C8: "A" or value = | D8: A | E8: constraint = | F8: PASS | G8: x6 | H8: -2.902181693 | I8: -5 | J8: 5 | K8: 4=SSID on OFhigh | N8: Watch Progress (Y/N)= | O8: N
A9: Number of LF players (~10*Nvar) (max 100) | C9: Nplayers = | D9: =10*D4 -> 60 | E9: Best # = | F9: 44 | K9: 5=SSID on OF range | N9: IncludePriorBest (Y/N)= | O9: N
A10: Number of Initializations | C10: Initializations = | D10: 0 | E10: Worst # = | F10: 42 | N10: ShowPlayers (Y/N)= | O10: N
A11: Convergence Criterion | C11: = | D11: 3
A12: Convergence Threshold | C12: = | D12: 0.001 | E12: Best OF = | F12: -469.987232
A13: N Replicates (for Stochastic Function) | C13: = | D13: 0 | E13: Converg Value = | F13: 0.0009568166843
E15: MovementH2L = | F15: 1
E16: Base_Shift = | F16: 0.25
C17: Std Dev NOFE
C18: =STDEV(C24:C619) -> 192.836487
C20: Avg NOFE
C21: =AVERAGE(C24:C619) -> 2903.22
A23: Trial # | B23: Iterations | C23: NOFE | D23: OF Value | E23: x1 | F23: x2 | G23: x3 | H23: x4 | I23: x5 | J23: x6
A24: 1 | B24: 98 | C24: 3110 | D24: -441.585967 | E24: -2.876760119 | F24: 2.759347639 | G24: -2.927049205 | H24: -2.894186091 | I24: -2.859026235 | J24: -2.88220988
A25: 2 | B25: 97 | C25: 2984 | D25: -469.9460115 | E25: -2.897575471 | F25: -2.896448358 | G25: -2.933000197 | H25: -2.910530919 | I25: -2.89257596 | J25: -2.88748464
A26: 3 | B26: 89 | C26: 2596 | D26: -469.9742663 | E26: -2.903748429 | F26: -2.9110335 | G26: -2.899520545 | H26: -2.920810057 | I26: -2.898662015 | J26: -2.890318599
A27: 4 | B27: 97 | C27: 2903 | D27: -469.9421446 | E27: -2.904785431 | F27: -2.891713442 | G27: -2.896218616 | H27: -2.927843401 | I27: -2.929957596 | J27: -2.9057228
A28: 5 | B28: 94 | C28: 2818 | D28: -469.8996281 | E28: -2.917846277 | F28: -2.922185736 | G28: -2.903673414 | H28: -2.928514315 | I28: -2.878537243 | J28: -2.872984374
A29: 6 | B29: 95 | C29: 2880 | D29: -469.9293475 | E29: -2.882604928 | F29: -2.929567507 | G29: -2.897300474 | H29: -2.917002043 | I29: -2.90541799 | J29: -2.926380602
A30: 7 | B30: 88 | C30: 3001 | D30: -469.9512825 | E30: -2.890935159 | F30: -2.88324838 | G30: -2.899594346 | H30: -2.908608981 | I30: -2.928176114 | J30: -2.907345033
A31: 8 | B31: 92 | C31: 3026 | D31: -469.987232 | E31: -2.914768554 | F31: -2.89701061 | G31: -2.90111006 | H31: -2.907816065 | I31: -2.903927636 | J31: -2.902181693
A32: 9 | B32: 97 | C32: 3281 | D32: -469.9604633 | E32: -2.912149059 | F32: -2.927561584 | G32: -2.897515869 | H32: -2.894207314 | I32: -2.902348833 | J32: -2.917240047
A33: 10 | B33: 94 | C33: 2610 | D33: -469.9393744 | E33: -2.924114075 | F33: -2.918909317 | G33: -2.914954716 | H33: -2.897438553 | I33: -2.929560556 | J33: -2.911510466
A34: 11 | B34: 89 | C34: 2584 | D34: -469.9289023 | E34: -2.925906481 | F34: -2.899194268 | G34: -2.932811329 | H34: -2.896907129 | I34: -2.885852373 | J34: -2.891733166
A35: 12 | B35: 97 | C35: 2959 | D35: -469.9735328 | E35: -2.912042323 | F35: -2.907303117 | G35: -2.924394704 | H35: -2.900987477 | I35: -2.903115074 | J35: -2.895791251
A36: 13 | B36: 91 | C36: 2799 | D36: -469.8724141 | E36: -2.892445251 | F36: -2.89379978 | G36: -2.934542906 | H36: -2.855732303 | I36: -2.902048784 | J36: -2.91225128
A37: 14 | B37: 95 | C37: 2884 | D37: -469.9107342 | E37: -2.931577374 | F37: -2.880982374 | G37: -2.893444046 | H37: -2.885112906 | I37: -2.921727916 | J37: -2.921836354
A38: 15 | B38: 93 | C38: 2846 | D38: -469.9338234 | E38: -2.907892098 | F38: -2.916893775 | G38: -2.880596852 | H38: -2.920659288 | I38: -2.925038142 | J38: -2.887408889
A39: 16 | B39: 93 | C39: 3064 | D39: -469.9775102 | E39: -2.903721217 | F39: -2.890265114 | G39: -2.903870491 | H39: -2.910254152 | I39: -2.897879389 | J39: -2.918459203
A40: 17 | B40: 90 | C40: 2687 | D40: -469.8823284 | E40: -2.910608968 | F40: -2.907152407 | G40: -2.869676567 | H40: -2.924866939 | I40: -2.899084304 | J40: -2.942697363
A41: 18 | B41: 90 | C41: 2668 | D41: -469.9131611 | E41: -2.916156088 | F41: -2.904751829 | G41: -2.875192545 | H41: -2.940013759 | I41: -2.906250558 | J41: -2.898470628
A42: 19 | B42: 103 | C42: 3250 | D42: -469.9183989 | E42: -2.934692587 | F42: -2.881111821 | G42: -2.913555533 | H42: -2.902898968 | I42: -2.925518294 | J42: -2.892666842
A43: 20 | B43: 92 | C43: 2858 | D43: -469.9737538 | E43: -2.902434763 | F43: -2.891828057 | G43: -2.919975325 | H43: -2.903956849 | I43: -2.906637232 | J43: -2.890630786
A44: 21 | B44: 96 | C44: 2690 | D44: -469.9539517 | E44: -2.90480494 | F44: -2.918760343 | G44: -2.890474416 | H44: -2.879976806 | I44: -2.90972785 | J44: -2.916322315
A45: 22 | B45: 94 | C45: 2841 | D45: -469.9498119 | E45: -2.897536983 | F45: -2.900069276 | G45: -2.898545206 | H45: -2.882667081 | I45: -2.911518087 | J45: -2.876798715
A46: 23 | B46: 90 | C46: 3069 | D46: -469.963945 | E46: -2.896190874 | F46: -2.88718781 | G46: -2.886449301 | H46: -2.915424764 | I46: -2.914087771 | J46: -2.901239231
A47: 24 | B47: 94 | C47: 2773 | D47: -469.9856844 | E47: -2.898860049 | F47: -2.905347942 | G47: -2.905754591 | H47: -2.896333651 | I47: -2.90429249 | J47: -2.890946227
A48: 25 | B48: 93 | C48: 3000 | D48: -469.9658764 | E48: -2.918725131 | F48: -2.88414814 | G48: -2.90038036 | H48: -2.90553727 | I48: -2.892830997 | J48: -2.894605936
A49: 26 | B49: 110 | C49: 3194 | D49: -469.8529554 | E49: -2.888214597 | F49: -2.938606091 | G49: -2.893646214 | H49: -2.880709244 | I49: -2.940261602 | J49: -2.928330584
A50: 27 | B50: 94 | C50: 2802 | D50: -469.9349025 | E50: -2.900559782 | F50: -2.911456339 | G50: -2.879888106 | H50: -2.920896959 | I50: -2.924333757 | J50: -2.922001559
A51: 28 | B51: 95 | C51: 2902 | D51: -469.9480775 | E51: -2.931607135 | F51: -2.912024294 | G51: -2.894254063 | H51: -2.893410426 | I51: -2.915182438 | J51: -2.915152414
A52: 29 | B52: 100 | C52: 3097 | D52: -469.935105 | E52: -2.913542489 | F52: -2.886897336 | G52: -2.910788534 | H52: -2.897944096 | I52: -2.926789874 | J52: -2.929835914
A53: 30 | B53: 91 | C53: 2827 | D53: -469.8347077 | E53: -2.92343686 | F53: -2.925639304 | G53: -2.897799551 | H53: -2.899493578 | I53: -2.853021711 | J53: -2.869320285
A54: 31 | B54: 88 | C54: 2807 | D54: -469.9753272 | E54: -2.897694527 | F54: -2.901400903 | G54: -2.89113236 | H54: -2.889564457 | I54: -2.915692985 | J54: -2.901255963
A55: 32 | B55: 93 | C55: 3054 | D55: -469.9093659 | E55: -2.884365462 | F55: -2.872878242 | G55: -2.873202171 | H55: -2.904571756 | I55: -2.916233315 | J55: -2.912354118
A56: 33 | B56: 90 | C56: 2884 | D56: -469.9861851 | E56: -2.90656834 | F56: -2.907774837 | G56: -2.901453571 | H56: -2.909731267 | I56: -2.904545878 | J56: -2.91594115
A57: 34 | B57: 90 | C57: 2837 | D57: -469.9399738 | E57: -2.882635778 | F57: -2.905167517 | G57: -2.883507629 | H57: -2.907632219 | I57: -2.916870542 | J57: -2.926503874
A58: 35 | B58: 92 | C58: 2907 | D58: -469.8473678 | E58: -2.916647613 | F58: -2.92649474 | G58: -2.907682985 | H58: -2.883065983 | I58: -2.850079637 | J58: -2.886277682
A59: 36 | B59: 95 | C59: 2952 | D59: -469.9594067 | E59: -2.924847187 | F59: -2.893605725 | G59: -2.901309872 | H59: -2.895043365 | I59: -2.922569654 | J59: -2.905179029
A60: 37 | B60: 95 | C60: 2877 | D60: -469.9530804 | E60: -2.907012472 | F60: -2.918731171 | G60: -2.89838621 | H60: -2.902971193 | I60: -2.873216988 | J60: -2.902089493
A61: 38 | B61: 96 | C61: 2733 | D61: -469.9662087 | E61: -2.906439891 | F61: -2.882950905 | G61: -2.922439903 | H61: -2.901353879 | I61: -2.903067198 | J61: -2.900465009
A62: 39 | B62: 95 | C62: 3259 | D62: -469.914951 | E62: -2.904002512 | F62: -2.87359789 | G62: -2.921518655 | H62: -2.917224144 | I62: -2.913281778 | J62: -2.87531083
A63: 40 | B63: 93 | C63: 3056 | D63: -469.9759612 | E63: -2.911624764 | F63: -2.89048529 | G63: -2.895020645 | H63: -2.902137919 | I63: -2.895099389 | J63: -2.915382774
A64: 41 | B64: 90 | C64: 2905 | D64: -469.9398555 | E64: -2.886418269 | F64: -2.905515973 | G64: -2.882318828 | H64: -2.901598542 | I64: -2.879954619 | J64: -2.887121715
A65: 42 | B65: 87 | C65: 2878 | D65: -469.9426645 | E65: -2.917678079 | F65: -2.903553234 | G65: -2.896892147 | H65: -2.892135854 | I65: -2.89061253 | J65: -2.872659269
A66: 43 | B66: 97 | C66: 3008 | D66: -469.949866 | E66: -2.92153584 | F66: -2.912987095 | G66: -2.87610016 | H66: -2.906592913 | I66: -2.903327852 | J66: -2.913766261
A67: 44 | B67: 96 | C67: 2957 | D67: -469.9506758 | E67: -2.89232802 | F67: -2.893343758 | G67: -2.895229541 | H67: -2.905825753 | I67: -2.900470008 | J67: -2.872708084
A68: 45 | B68: 89 | C68: 2840 | D68: -469.975359 | E68: -2.901034957 | F68: -2.886901896 | G68: -2.915770445 | H68: -2.898886574 | I68: -2.90573847 | J68: -2.894543338
A69: 46 | B69: 89 | C69: 2808 | D69: -469.9459541 | E69: -2.885281473 | F69: -2.913943011 | G69: -2.890184081 | H69: -2.887684482 | I69: -2.88192387 | J69: -2.911153186
A70: 47 | B70: 90 | C70: 2627 | D70: -469.9773659 | E70: -2.904745948 | F70: -2.901124683 | G70: -2.909925694 | H70: -2.902237507 | I70: -2.897159714 | J70: -2.883714056
A71: 48 | B71: 91 | C71: 2720 | D71: -469.945073 | E71: -2.91243863 | F71: -2.920085328 | G71: -2.897424302 | H71: -2.872362912 | I71: -2.907833282 | J71: -2.910021352
A72: 49 | B72: 94 | C72: 2492 | D72: -469.9669481 | E72: -2.922768803 | F72: -2.892895184 | G72: -2.91156874 | H72: -2.903065424 | I72: -2.912095231 | J72: -2.916088856
A73: 50 | B73: 89 | C73: 2780 | D73: -469.9739193 | E73: -2.92003523 | F73: -2.909653287 | G73: -2.89710519 | H73: -2.911140773 | I73: -2.915904719 | J73: -2.899522346
A74: 51 | B74: 96 | C74: 2764 | D74: -469.9081218 | E74: -2.901290299 | F74: -2.901115431 | G74: -2.917290073 | H74: -2.919111306 | I74: -2.866645158 | J74: -2.877072126
A75: 52 | B75: 91 | C75: 2723 | D75: -469.9388788 | E75: -2.922730516 | F75: -2.886986291 | G75: -2.917192165 | H75: -2.882431654 | I75: -2.90712645 | J75: -2.885935795
A76: 53 | B76: 96 | C76: 2930 | D76: -469.9265828 | E76: -2.903834488 | F76: -2.902644191 | G76: -2.871033324 | H76: -2.90987074 | I76: -2.896384036 | J76: -2.931897604
A77: 54 | B77: 95 | C77: 3308 | D77: -469.9317358 | E77: -2.907629225 | F77: -2.91306583 | G77: -2.924112119 | H77: -2.881210588 | I77: -2.87589155 | J77: -2.907289857
A78: 55 | B78: 99 | C78: 3264 | D78: -469.8710027 | E78: -2.916861985 | F78: -2.929941185 | G78: -2.860509045 | H78: -2.876990214 | I78: -2.905089164 | J78: -2.89130041
A79: 56 | B79: 90 | C79: 2715 | D79: -469.90701 | E79: -2.88052958 | F79: -2.908827562 | G79: -2.868382333 | H79: -2.926254949 | I79: -2.88946604 | J79: -2.908388359
A80: 57 | B80: 92 | C80: 2924 | D80: -469.9176195 | E80: -2.868668466 | F80: -2.88821117 | G80: -2.930367846 | H80: -2.906965481 | I80: -2.909162317 | J80: -2.901746892
A81: 58 | B81: 95 | C81: 2898 | D81: -469.9537881 | E81: -2.91185409 | F81: -2.920329418 | G81: -2.91818241 | H81: -2.882029251 | I81: -2.9114782 | J81: -2.911966046
A82: 59 | B82: 96 | C82: 3110 | D82: -469.9495915 | E82: -2.928842554 | F82: -2.900939957 | G82: -2.913911442 | H82: -2.92022645 | I82: -2.917400311 | J82: -2.910571149
A83: 60 | B83: 86 | C83: 2483 | D83: -469.9451459 | E83: -2.898595171 | F83: -2.926279181 | G83: -2.929854549 | H83: -2.904113554 | I83: -2.916435753 | J83: -2.904037888
A84: 61 | B84: 96 | C84: 2805 | D84: -469.951184 | E84: -2.89549037 | F84: -2.909119311 | G84: -2.918196959 | H84: -2.89498038 | I84: -2.89186364 | J84: -2.876630616
A85: 62 | B85: 90 | C85: 2603 | D85: -469.8422485 | E85: -2.889032613 | F85: -2.884327249 | G85: -2.897370504 | H85: -2.930300899 | I85: -2.926196621 | J85: -2.852766804
A86: 63 | B86: 101 | C86: 3103 | D86: -469.9530314 | E86: -2.888443242 | F86: -2.912817477 | G86: -2.887548704 | H86: -2.896723228 | I86: -2.894440627 | J86: -2.881351615
A87: 64 | B87: 92 | C87: 2937 | D87: -469.8609693 | E87: -2.870932712 | F87: -2.95289465 | G87: -2.891831194 | H87: -2.894625789 | I87: -2.897338059 | J87: -2.895507971
A88: 65 | B88: 89 | C88: 2805 | D88: -469.8893887 | E88: -2.913378517 | F88: -2.914705041 | G88: -2.910892872 | H88: -2.890576838 | I88: -2.853253894 | J88: -2.913268382
A89: 66 | B89: 91 | C89: 3304 | D89: -469.9532724 | E89: -2.919038954 | F89: -2.893532856 | G89: -2.901537155 | H89: -2.896458553 | I89: -2.91908246 | J89: -2.926661693
A90: 67 | B90: 89 | C90: 2719 | D90: -469.907244 | E90: -2.912026645 | F90: -2.905923257 | G90: -2.938456687 | H90: -2.904214116 | I90: -2.937870033 | J90: -2.905336462
A91: 68 | B91: 86 | C91: 2907 | D91: -469.9563768 | E91: -2.906393153 | F91: -2.885167605 | G91: -2.904810453 | H91: -2.914992575 | I91: -2.880632384 | J91: -2.913018911
A92: 69 | B92: 101 | C92: 3389 | D92: -469.9363952 | E92: -2.931550033 | F92: -2.90338769 | G92: -2.926685975 | H92: -2.900803888 | I92: -2.916332258 | J92: -2.916191991
A93: 70 | B93: 91 | C93: 2625 | D93: -469.9118349 | E93: -2.876972671 | F93: -2.933155019 | G93: -2.884644446 | H93: -2.919346419 | I93: -2.894289084 | J93: -2.913469369
A94: 71 | B94: 92 | C94: 2778 | D94: -469.8653462 | E94: -2.946643584 | F94: -2.911734773 | G94: -2.89215573 | H94: -2.898131097 | I94: -2.924515091 | J94: -2.937480029
A95: 72 | B95: 94 | C95: 2888 | D95: -469.9343638 | E95: -2.902802793 | F95: -2.927631159 | G95: -2.879376421 | H95: -2.905230708 | I95: -2.923816933 | J95: -2.915436547
A96: 73 | B96: 89 | C96: 2813 | D96: -469.9165492 | E96: -2.877433547 | F96: -2.89475003 | G96: -2.888771015 | H96: -2.885482444 | I96: -2.915361953 | J96: -2.875010707
A97: 74 | B97: 89 | C97: 2818 | D97: -469.9692689 | E97: -2.895015238 | F97: -2.897865648 | G97: -2.900563522 | H97: -2.908079978 | I97: -2.912573824 | J97: -2.881114067
A98: 75 | B98: 90 | C98: 3025 | D98: -469.961684 | E98: -2.897756382 | F98: -2.894220211 | G98: -2.893249561 | H98: -2.918944963 | I98: -2.915394569 | J98: -2.885341358
A99: 76 | B99: 92 | C99: 3020 | D99: -469.9477479 | E99: -2.898317293 | F99: -2.915543586 | G99: -2.91829472 | H99: -2.918289634 | I99: -2.915776116 | J99: -2.879418576
A100: 77 | B100: 98 | C100: 3267 | D100: -469.9468486 | E100: -2.903933875 | F100: -2.915726683 | G100: -2.871308271 | H100: -2.906004611 | I100: -2.898132076 | J100: -2.891215003
A101: 78 | B101: 97 | C101: 3211 | D101: -469.9526609 | E101: -2.926310226 | F101: -2.888792584 | G101: -2.89165764 | H101: -2.915409654 | I101: -2.906721484 | J101: -2.890707782
A102: 79 | B102: 94 | C102: 2662 | D102: -469.9340757 | E102: -2.882675084 | F102: -2.884262618 | G102: -2.920085591 | H102: -2.905300123 | I102: -2.898170096 | J102: -2.928411495
A103: 80 | B103: 89 | C103: 2866 | D103: -469.9005327 | E103: -2.904165991 | F103: -2.92715026 | G103: -2.935208238 | H103: -2.877655049 | I103: -2.884136962 | J103: -2.894131517
A104: 81 | B104: 93 | C104: 2990 | D104: -469.9183315 | E104: -2.89405302 | F104: -2.867528614 | G104: -2.909707541 | H104: -2.927062063 | I104: -2.917300565 | J104: -2.897980591
A105: 82 | B105: 94 | C105: 2833 | D105: -469.8768706 | E105: -2.86634141 | F105: -2.926296951 | G105: -2.910850901 | H105: -2.867541859 | I105: -2.912651683 | J105: -2.894492687
A106: 83 | B106: 95 | C106: 2970 | D106: -469.9738853 | E106: -2.905512419 | F106: -2.887502056 | G106: -2.890302791 | H106: -2.89884364 | I106: -2.898010417 | J106: -2.913266693
A107: 84 | B107: 94 | C107: 2796 | D107: -469.8712818 | E107: -2.92043969 | F107: -2.904523126 | G107: -2.871472823 | H107: -2.898120659 | I107: -2.883148145 | J107: -2.860790391
A108: 85 | B108: 101 | C108: 3042 | D108: -469.9117655 | E108: -2.933780031 | F108: -2.908082069 | G108: -2.92681338 | H108: -2.881855988 | I108: -2.887543224 | J108: -2.890635001
A109: 86 | B109: 93 | C109: 2897 | D109: -469.9620943 | E109: -2.905148465 | F109: -2.897391548 | G109: -2.880135459 | H109: -2.912700966 | I109: -2.907612355 | J109: -2.918916361
A110: 87 | B110: 93 | C110: 2904 | D110: -469.9758077 | E110: -2.892585791 | F110: -2.900042335 | G110: -2.890280704 | H110: -2.894045352 | I110: -2.900982062 | J110: -2.892423376
A111: 88 | B111: 94 | C111: 2861 | D111: -441.6854865 | E111: -2.901640363 | F111: -2.887112138 | G111: 2.746883601 | H111: -2.879098266 | I111: -2.891880055 | J111: -2.899707912
A112: 89 | B112: 94 | C112: 2881 | D112: -469.9263711 | E112: -2.881117252 | F112: -2.935749692 | G112: -2.886778678 | H112: -2.914415125 | I112: -2.901671094 | J112: -2.905963598
A113: 90 | B113: 96 | C113: 3167 | D113: -469.9172499 | E113: -2.907395138 | F113: -2.895371953 | G113: -2.9296433 | H113: -2.909530215 | I113: -2.89602105 | J113: -2.866457788
A114: 91 | B114: 91 | C114: 2941 | D114: -469.9619491 | E114: -2.883012175 | F114: -2.908877642 | G114: -2.901015261 | H114: -2.888446703 | I114: -2.899308988 | J114: -2.888364217
A115: 92 | B115: 91 | C115: 2960 | D115: -469.9791012 | E115: -2.904782366 | F115: -2.917249636 | G115: -2.90507493 | H115: -2.908588863 | I115: -2.899512223 | J115: -2.889507825
A116: 93 | B116: 89 | C116: 2733 | D116: -469.9687098 | E116: -2.895801284 | F116: -2.905734869 | G116: -2.914509946 | H116: -2.901758467 | I116: -2.880838057 | J116: -2.897942066
A117: 94 | B117: 95 | C117: 2768 | D117: -469.9559898 | E117: -2.904169296 | F117: -2.885707823 | G117: -2.892395258 | H117: -2.912850736 | I117: -2.923083197 | J117: -2.889823181
A118: 95 | B118: 91 | C118: 2933 | D118: -469.9412916 | E118: -2.924674688 | F118: -2.909060728 | G118: -2.885072075 | H118: -2.896520672 | I118: -2.896859528 | J118: -2.878715937
A119: 96 | B119: 87 | C119: 2480 | D119: -469.9637544 | E119: -2.883695077 | F119: -2.916477232 | G119: -2.890515868 | H119: -2.896668763 | I119: -2.913468052 | J119: -2.904035229
A120: 97 | B120: 97 | C120: 2954 | D120: -469.9570556 | E120: -2.889960026 | F120: -2.930593793 | G120: -2.902628513 | H120: -2.894418993 | I120: -2.906672091 | J120: -2.896305615
A121: 98 | B121: 95 | C121: 2949 | D121: -469.9488781 | E121: -2.895305393 | F121: -2.894163087 | G121: -2.918222675 | H121: -2.890920402 | I121: -2.897631833 | J121: -2.876218196
A122: 99 | B122: 97 | C122: 3306 | D122: -469.9780392 | E122: -2.898005596 | F122: -2.889057539 | G122: -2.909085103 | H122: -2.90537491 | I122: -2.898403572 | J122: -2.916218751
A123: 100 | B123: 91 | C123: 2909 | D123: -469.764352 | E123: -2.874783324 | F123: -2.929771327 | G123: -2.882748691 | H123: -2.958548443 | I123: -2.943427616 | J123: -2.90200313

Sheet DataRESULT
A1: This sheet shows results | K1: IterationMax | L1: Std Dev | M1: Std Dev 10 | N1: Std Dev 10 | O1: Std Dev 10 | P1: Std Dev 10 | Q1: Std Dev 10 | R1: Std Dev 10 | S1: Std Dev 10 | T1: Std Dev 10 | U1: Std Dev 10 | V1: Std Dev 10 | W1: Std Dev 10 | X1: Std Dev 10 | Y1: Std Dev 10 | Z1: Std Dev 10 | AA1: Std Dev 10 | AB1: Std Dev 10 | AC1: Std Dev 10 | AD1: Std Dev 10 | AE1: Std Dev 10 | AF1: Std Dev 10 | AG1: Std Dev 10
K2: =MAX(K9:K509) -> 110 | L2: =STDEV(L9:L295) -> 192.836487 | M2: =STDEV(M9:M18) -> 0.004664037447 | N2: =STDEV(N9:N18) -> 0.006517313993 | O2: 0.009727795376 | P2: 0.007354107181 | Q2: 0.005753750068 | R2: 0.003683168737 | S2: 0.01336017577
A3: Columns 9 and after show the final results at optimizer stopping.
B4: If iterations > iteration Max, optimizer did not meet convergence criterion | K4: Average | L4: Average | M4: Avg 10 | N4: Avg 10 | O4: Avg 10 | P4: Avg 10 | Q4: Avg 10 | R4: Avg 10 | S4: Avg 10 | T4: Avg 10 | U4: Avg 10 | V4: Avg 10 | W4: Avg 10 | X4: Avg 10 | Y4: Avg 10 | Z4: Avg 10 | AA4: Avg 10 | AB4: Avg 10 | AC4: Avg 10 | AD4: Avg 10 | AE4: Avg 10 | AF4: Avg 10 | AG4: Avg 10
K5: =AVERAGE(K9:K509) -> 93.27 | L5: =AVERAGE(L9:L509) -> 2903.22 | M5: =AVERAGE(M9:M18) -> -469.9798246 | N5: =AVERAGE(N9:N18) -> -2.903669758 | O5: -2.898525988 | P5: -2.903734623 | Q5: -2.903540626 | R5: -2.900754082 | S5: -2.901931839
I7: CDF | J7: Trial# | K7: Iterations | L7: NOFE | M7: Best | N7: DV1 | O7: DV2 | P7: DV3 | Q7: DV4 | R7: DV5 | S7: DV6 | T7: DV7 | U7: DV8 | V7: DV9 | W7: DV10 | X7: DV11 | Y7: DV12 | Z7: DV13 | AA7: DV14 | AB7: DV15 | AC7: DV16 | AD7: DV17 | AE7: DV18 | AF7: DV19 | AG7: DV20
M8: OF Value | N8: x1 | O8: x2 | P8: x3 | Q8: x4 | R8: x5 | S8: x6
F9: =M9/2 -> -234.993616 | I9: 0.01 | J9: 8 | K9: 92 | L9: 3026 | M9: -469.987232 | N9: -2.914768554 | O9: -2.89701061 | P9: -2.90111006 | Q9: -2.907816065 | R9: -2.903927636 | S9: -2.902181693
F10: -50.0889331 | I10: 0.02 | J10: 33 | K10: 90 | L10: 2884 | M10: -469.9861851 | N10: -2.90656834 | O10: -2.907774837 | P10: -2.901453571 | Q10: -2.909731267 | R10: -2.904545878 | S10: -2.91594115
I11: 0.03 | J11: 24 | K11: 94 | L11: 2773 | M11: -469.9856844 | N11: -2.898860049 | O11: -2.905347942 | P11: -2.905754591 | Q11: -2.896333651 | R11: -2.90429249 | S11: -2.890946227
F12: =F9+F10 -> -285.0825491 | I12: 0.04 | J12: 92 | K12: 91 | L12: 2960 | M12: -469.9791012 | N12: -2.904782366 | O12: -2.917249636 | P12: -2.90507493 | Q12: -2.908588863 | R12: -2.899512223 | S12: -2.889507825
I13: 0.05 | J13: 99 | K13: 97 | L13: 3306 | M13: -469.9780392 | N13: -2.898005596 | O13: -2.889057539 | P13: -2.909085103 | Q13: -2.90537491 | R13: -2.898403572 | S13: -2.916218751
I14: 0.06 | J14: 16 | K14: 93 | L14: 3064 | M14: -469.9775102 | N14: -2.903721217 | O14: -2.890265114 | P14: -2.903870491 | Q14: -2.910254152 | R14: -2.897879389 | S14: -2.918459203
I15: 0.07 | J15: 47 | K15: 90 | L15: 2627 | M15: -469.9773659 | N15: -2.904745948 | O15: -2.901124683 | P15: -2.909925694 | Q15: -2.902237507 | R15: -2.897159714 | S15: -2.883714056
I16: 0.08 | J16: 40 | K16: 93 | L16: 3056 | M16: -469.9759612 | N16: -2.911624764 | O16: -2.89048529 | P16: -2.895020645 | Q16: -2.902137919 | R16: -2.895099389 | S16: -2.915382774
I17: 0.09 | J17: 87 | K17: 93 | L17: 2904 | M17: -469.9758077 | N17: -2.892585791 | O17: -2.900042335 | P17: -2.890280704 | Q17: -2.894045352 | R17: -2.900982062 | S17: -2.892423376
I18: 0.1 | J18: 45 | K18: 89 | L18: 2840 | M18: -469.975359 | N18: -2.901034957 | O18: -2.886901896 | P18: -2.915770445 | Q18: -2.898886574 | R18: -2.90573847 | S18: -2.894543338
I19: 0.11 | J19: 31 | K19: 88 | L19: 2807 | M19: -469.9753272 | N19: -2.897694527 | O19: -2.901400903 | P19: -2.89113236 | Q19: -2.889564457 | R19: -2.915692985 | S19: -2.901255963
I20: 0.12 | J20: 3 | K20: 89 | L20: 2596 | M20: -469.9742663 | N20: -2.903748429 | O20: -2.9110335 | P20: -2.899520545 | Q20: -2.920810057 | R20: -2.898662015 | S20: -2.890318599
I21: 0.13 | J21: 50 | K21: 89 | L21: 2780 | M21: -469.9739193 | N21: -2.92003523 | O21: -2.909653287 | P21: -2.89710519 | Q21: -2.911140773 | R21: -2.915904719 | S21: -2.899522346
I22: 0.14 | J22: 83 | K22: 95 | L22: 2970 | M22: -469.9738853 | N22: -2.905512419 | O22: -2.887502056 | P22: -2.890302791 | Q22: -2.89884364 | R22: -2.898010417 | S22: -2.913266693
I23: 0.15 | J23: 20 | K23: 92 | L23: 2858 | M23: -469.9737538 | N23: -2.902434763 | O23: -2.891828057 | P23: -2.919975325 | Q23: -2.903956849 | R23: -2.906637232 | S23: -2.890630786
I24: 0.16 | J24: 12 | K24: 97 | L24: 2959 | M24: -469.9735328 | N24: -2.912042323 | O24: -2.907303117 | P24: -2.924394704 | Q24: -2.900987477 | R24: -2.903115074 | S24: -2.895791251
I25: 0.17 | J25: 74 | K25: 89 | L25: 2818 | M25: -469.9692689 | N25: -2.895015238 | O25: -2.897865648 | P25: -2.900563522 | Q25: -2.908079978 | R25: -2.912573824 | S25: -2.881114067
I26: 0.18 | J26: 93 | K26: 89 | L26: 2733 | M26: -469.9687098 | N26: -2.895801284 | O26: -2.905734869 | P26: -2.914509946 | Q26: -2.901758467 | R26: -2.880838057 | S26: -2.897942066
I27: 0.19 | J27: 49 | K27: 94 | L27: 2492 | M27: -469.9669481 | N27: -2.922768803 | O27: -2.892895184 | P27: -2.91156874 | Q27: -2.903065424 | R27: -2.912095231 | S27: -2.916088856
I28: 0.2 | J28: 38 | K28: 96 | L28: 2733 | M28: -469.9662087 | N28: -2.906439891 | O28: -2.882950905 | P28: -2.922439903 | Q28: -2.901353879 | R28: -2.903067198 | S28: -2.900465009
I29: 0.21 | J29: 25 | K29: 93 | L29: 3000 | M29: -469.9658764 | N29: -2.918725131 | O29: -2.88414814 | P29: -2.90038036 | Q29: -2.90553727 | R29: -2.892830997 | S29: -2.894605936
I30: 0.22 | J30: 23 | K30: 90 | L30: 3069 | M30: -469.963945 | N30: -2.896190874 | O30: -2.88718781 | P30: -2.886449301 | Q30: -2.915424764 | R30: -2.914087771 | S30: -2.901239231
I31: 0.23 | J31: 96 | K31: 87 | L31: 2480 | M31: -469.9637544 | N31: -2.883695077 | O31: -2.916477232 | P31: -2.890515868 | Q31: -2.896668763 | R31: -2.913468052 | S31: -2.904035229
I32: 0.24 | J32: 86 | K32: 93 | L32: 2897 | M32: -469.9620943 | N32: -2.905148465 | O32: -2.897391548 | P32: -2.880135459 | Q32: -2.912700966 | R32: -2.907612355 | S32: -2.918916361
I33: 0.25 | J33: 91 | K33: 91 | L33: 2941 | M33: -469.9619491 | N33: -2.883012175 | O33: -2.908877642 | P33: -2.901015261 | Q33: -2.888446703 | R33: -2.899308988 | S33: -2.888364217
I34: 0.26 | J34: 75 | K34: 90 | L34: 3025 | M34: -469.961684 | N34: -2.897756382 | O34: -2.894220211 | P34: -2.893249561 | Q34: -2.918944963 | R34: -2.915394569 | S34: -2.885341358
I35: 0.27 | J35: 9 | K35: 97 | L35: 3281 | M35: -469.9604633 | N35: -2.912149059 | O35: -2.927561584 | P35: -2.897515869 | Q35: -2.894207314 | R35: -2.902348833 | S35: -2.917240047
I36: 0.28 | J36: 36 | K36: 95 | L36: 2952 | M36: -469.9594067 | N36: -2.924847187 | O36: -2.893605725 | P36: -2.901309872 | Q36: -2.895043365 | R36: -2.922569654 | S36: -2.905179029
I37: 0.29 | J37: 97 | K37: 97 | L37: 2954 | M37: -469.9570556 | N37: -2.889960026 | O37: -2.930593793 | P37: -2.902628513 | Q37: -2.894418993 | R37: -2.906672091 | S37: -2.896305615
I38: 0.3 | J38: 68 | K38: 86 | L38: 2907 | M38: -469.9563768 | N38: -2.906393153 | O38: -2.885167605 | P38: -2.904810453 | Q38: -2.914992575 | R38: -2.880632384 | S38: -2.913018911
I39: 0.31 | J39: 94 | K39: 95 | L39: 2768 | M39: -469.9559898 | N39: -2.904169296 | O39: -2.885707823 | P39: -2.892395258 | Q39: -2.912850736 | R39: -2.923083197 | S39: -2.889823181
I40: 0.32 | J40: 21 | K40: 96 | L40: 2690 | M40: -469.9539517 | N40: -2.90480494 | O40: -2.918760343 | P40: -2.890474416 | Q40: -2.879976806 | R40: -2.90972785 | S40: -2.916322315
I41: 0.33 | J41: 58 | K41: 95 | L41: 2898 | M41: -469.9537881 | N41: -2.91185409 | O41: -2.920329418 | P41: -2.91818241 | Q41: -2.882029251 | R41: -2.9114782 | S41: -2.911966046
I42: 0.34 | J42: 66 | K42: 91 | L42: 3304 | M42: -469.9532724 | N42: -2.919038954 | O42: -2.893532856 | P42: -2.901537155 | Q42: -2.896458553 | R42: -2.91908246 | S42: -2.926661693
I43: 0.35 | J43: 37 | K43: 95 | L43: 2877 | M43: -469.9530804 | N43: -2.907012472 | O43: -2.918731171 | P43: -2.89838621 | Q43: -2.902971193 | R43: -2.873216988 | S43: -2.902089493
I44: 0.36 | J44: 63 | K44: 101 | L44: 3103 | M44: -469.9530314 | N44: -2.888443242 | O44: -2.912817477 | P44: -2.887548704 | Q44: -2.896723228 | R44: -2.894440627 | S44: -2.881351615
I45: 0.37 | J45: 78 | K45: 97 | L45: 3211 | M45: -469.9526609 | N45: -2.926310226 | O45: -2.888792584 | P45: -2.89165764 | Q45: -2.915409654 | R45: -2.906721484 | S45: -2.890707782
I46: 0.38 | J46: 7 | K46: 88 | L46: 3001 | M46: -469.9512825 | N46: -2.890935159 | O46: -2.88324838 | P46: -2.899594346 | Q46: -2.908608981 | R46: -2.928176114 | S46: -2.907345033
I47: 0.39 | J47: 61 | K47: 96 | L47: 2805 | M47: -469.951184 | N47: -2.89549037 | O47: -2.909119311 | P47: -2.918196959 | Q47: -2.89498038 | R47: -2.89186364 | S47: -2.876630616
I48: 0.4 | J48: 44 | K48: 96 | L48: 2957 | M48: -469.9506758 | N48: -2.89232802 | O48: -2.893343758 | P48: -2.895229541 | Q48: -2.905825753 | R48: -2.900470008 | S48: -2.872708084
I49: 0.41 | J49: 43 | K49: 97 | L49: 3008 | M49: -469.949866 | N49: -2.92153584 | O49: -2.912987095 | P49: -2.87610016 | Q49: -2.906592913 | R49: -2.903327852 | S49: -2.913766261
I50: 0.42 | J50: 22 | K50: 94 | L50: 2841 | M50: -469.9498119 | N50: -2.897536983 | O50: -2.900069276 | P50: -2.898545206 | Q50: -2.882667081 | R50: -2.911518087 | S50: -2.876798715
I51: 0.43 | J51: 59 | K51: 96 | L51: 3110 | M51: -469.9495915 | N51: -2.928842554 | O51: -2.900939957 | P51: -2.913911442 | Q51: -2.92022645 | R51: -2.917400311 | S51: -2.910571149
I52: 0.44 | J52: 98 | K52: 95 | L52: 2949 | M52: -469.9488781 | N52: -2.895305393 | O52: -2.894163087 | P52: -2.918222675 | Q52: -2.890920402 | R52: -2.897631833 | S52: -2.876218196
I53: 0.45 | J53: 28 | K53: 95 | L53: 2902 | M53: -469.9480775 | N53: -2.931607135 | O53: -2.912024294 | P53: -2.894254063 | Q53: -2.893410426 | R53: -2.915182438 | S53: -2.915152414
I54: 0.46 | J54: 76 | K54: 92 | L54: 3020 | M54: -469.9477479 | N54: -2.898317293 | O54: -2.915543586 | P54: -2.91829472 | Q54: -2.918289634 | R54: -2.915776116 | S54: -2.879418576
I55: 0.47 | J55: 77 | K55: 98 | L55: 3267 | M55: -469.9468486 | N55: -2.903933875 | O55: -2.915726683 | P55: -2.871308271 | Q55: -2.906004611 | R55: -2.898132076 | S55: -2.891215003
I56: 0.48 | J56: 2 | K56: 97 | L56: 2984 | M56: -469.9460115 | N56: -2.897575471 | O56: -2.896448358 | P56: -2.933000197 | Q56: -2.910530919 | R56: -2.89257596 | S56: -2.88748464
I57: 0.49 | J57: 46 | K57: 89 | L57: 2808 | M57: -469.9459541 | N57: -2.885281473 | O57: -2.913943011 | P57: -2.890184081 | Q57: -2.887684482 | R57: -2.88192387 | S57: -2.911153186
I58: 0.5 | J58: 60 | K58: 86 | L58: 2483 | M58: -469.9451459 | N58: -2.898595171 | O58: -2.926279181 | P58: -2.929854549 | Q58: -2.904113554 | R58: -2.916435753 | S58: -2.904037888
I59: 0.51 | J59: 48 | K59: 91 | L59: 2720 | M59: -469.945073 | N59: -2.91243863 | O59: -2.920085328 | P59: -2.897424302 | Q59: -2.872362912 | R59: -2.907833282 | S59: -2.910021352
I60: 0.52 | J60: 42 | K60: 87 | L60: 2878 | M60: -469.9426645 | N60: -2.917678079 | O60: -2.903553234 | P60: -2.896892147 | Q60: -2.892135854 | R60: -2.89061253 | S60: -2.872659269
I61: 0.53 | J61: 4 | K61: 97 | L61: 2903 | M61: -469.9421446 | N61: -2.904785431 | O61: -2.891713442 | P61: -2.896218616 | Q61: -2.927843401 | R61: -2.929957596 | S61: -2.9057228
I62: 0.54 | J62: 95 | K62: 91 | L62: 2933 | M62: -469.9412916 | N62: -2.924674688 | O62: -2.909060728 | P62: -2.885072075 | Q62: -2.896520672 | R62: -2.896859528 | S62: -2.878715937
I63: 0.55 | J63: 34 | K63: 90 | L63: 2837 | M63: -469.9399738 | N63: -2.882635778 | O63: -2.905167517 | P63: -2.883507629 | Q63: -2.907632219 | R63: -2.916870542 | S63: -2.926503874
I64: 0.56 | J64: 41 | K64: 90 | L64: 2905 | M64: -469.9398555 | N64: -2.886418269 | O64: -2.905515973 | P64: -2.882318828 | Q64: -2.901598542 | R64: -2.879954619 | S64: -2.887121715
I65: 0.57 | J65: 10 | K65: 94 | L65: 2610 | M65: -469.9393744 | N65: -2.924114075 | O65: -2.918909317 | P65: -2.914954716 | Q65: -2.897438553 | R65: -2.929560556 | S65: -2.911510466
I66: 0.58 | J66: 52 | K66: 91 | L66: 2723 | M66: -469.9388788 | N66: -2.922730516 | O66: -2.886986291 | P66: -2.917192165 | Q66: -2.882431654 | R66: -2.90712645 | S66: -2.885935795
I67: 0.59 | J67: 69 | K67: 101 | L67: 3389 | M67: -469.9363952 | N67: -2.931550033 | O67: -2.90338769 | P67: -2.926685975 | Q67: -2.900803888 | R67: -2.916332258 | S67: -2.916191991
I68: 0.6 | J68: 29 | K68: 100 | L68: 3097 | M68: -469.935105 | N68: -2.913542489 | O68: -2.886897336 | P68: -2.910788534 | Q68: -2.897944096 | R68: -2.926789874 | S68: -2.929835914
I69: 0.61 | J69: 27 | K69: 94 | L69: 2802 | M69: -469.9349025 | N69: -2.900559782 | O69: -2.911456339 | P69: -2.879888106 | Q69: -2.920896959 | R69: -2.924333757 | S69: -2.922001559
I70: 0.62 | J70: 72 | K70: 94 | L70: 2888 | M70: -469.9343638 | N70: -2.902802793 | O70: -2.927631159 | P70: -2.879376421 | Q70: -2.905230708 | R70: -2.923816933 | S70: -2.915436547
I71: 0.63 | J71: 79 | K71: 94 | L71: 2662 | M71: -469.9340757 | N71: -2.882675084 | O71: -2.884262618 | P71: -2.920085591 | Q71: -2.905300123 | R71: -2.898170096 | S71: -2.928411495
I72: 0.64 | J72: 15 | K72: 93 | L72: 2846 | M72: -469.9338234 | N72: -2.907892098 | O72: -2.916893775 | P72: -2.880596852 | Q72: -2.920659288 | R72: -2.925038142 | S72: -2.887408889
I73: 0.65 | J73: 54 | K73: 95 | L73: 3308 | M73: -469.9317358 | N73: -2.907629225 | O73: -2.91306583 | P73: -2.924112119 | Q73: -2.881210588 | R73: -2.87589155 | S73: -2.907289857
I74: 0.66 | J74: 6 | K74: 95 | L74: 2880 | M74: -469.9293475 | N74: -2.882604928 | O74: -2.929567507 | P74: -2.897300474 | Q74: -2.917002043 | R74: -2.90541799 | S74: -2.926380602
I75: 0.67 | J75: 11 | K75: 89 | L75: 2584 | M75: -469.9289023 | N75: -2.925906481 | O75: -2.899194268 | P75: -2.932811329 | Q75: -2.896907129 | R75: -2.885852373 | S75: -2.891733166
I76: 0.68 | J76: 53 | K76: 96 | L76: 2930 | M76: -469.9265828 | N76: -2.903834488 | O76: -2.902644191 | P76: -2.871033324 | Q76: -2.90987074 | R76: -2.896384036 | S76: -2.931897604
I77: 0.69 | J77: 89 | K77: 94 | L77: 2881 | M77: -469.9263711 | N77: -2.881117252 | O77: -2.935749692 | P77: -2.886778678 | Q77: -2.914415125 | R77: -2.901671094 | S77: -2.905963598
I78: 0.7 | J78: 19 | K78: 103 | L78: 3250 | M78: -469.9183989 | N78: -2.934692587 | O78: -2.881111821 | P78: -2.913555533 | Q78: -2.902898968 | R78: -2.925518294 | S78: -2.892666842
I79: 0.71 | J79: 81 | K79: 93 | L79: 2990 | M79: -469.9183315 | N79: -2.89405302 | O79: -2.867528614 | P79: -2.909707541 | Q79: -2.927062063 | R79: -2.917300565 | S79: -2.897980591
I80: 0.72 | J80: 57 | K80: 92 | L80: 2924 | M80: -469.9176195 | N80: -2.868668466 | O80: -2.88821117 | P80: -2.930367846 | Q80: -2.906965481 | R80: -2.909162317 | S80: -2.901746892
I81: 0.73 | J81: 90 | K81: 96 | L81: 3167 | M81: -469.9172499 | N81: -2.907395138 | O81: -2.895371953 | P81: -2.9296433 | Q81: -2.909530215 | R81: -2.89602105 | S81: -2.866457788
I82: 0.74 | J82: 73 | K82: 89 | L82: 2813 | M82: -469.9165492 | N82: -2.877433547 | O82: -2.89475003 | P82: -2.888771015 | Q82: -2.885482444 | R82: -2.915361953 | S82: -2.875010707
I83: 0.75 | J83: 39 | K83: 95 | L83: 3259 | M83: -469.914951 | N83: -2.904002512 | O83: -2.87359789 | P83: -2.921518655 | Q83: -2.917224144 | R83: -2.913281778 | S83: -2.87531083
I84: 0.76 | J84: 18 | K84: 90 | L84: 2668 | M84: -469.9131611 | N84: -2.916156088 | O84: -2.904751829 | P84: -2.875192545 | Q84: -2.940013759 | R84: -2.906250558 | S84: -2.898470628
I85: 0.77 | J85: 70 | K85: 91 | L85: 2625 | M85: -469.9118349 | N85: -2.876972671 | O85: -2.933155019 | P85: -2.884644446 | Q85: -2.919346419 | R85: -2.894289084 | S85: -2.913469369
I86: 0.78 | J86: 85 | K86: 101 | L86: 3042 | M86: -469.9117655 | N86: -2.933780031 | O86: -2.908082069 | P86: -2.92681338 | Q86: -2.881855988 | R86: -2.887543224 | S86: -2.890635001
I87: 0.79 | J87: 14 | K87: 95 | L87: 2884 | M87: -469.9107342 | N87: -2.931577374 | O87: -2.880982374 | P87: -2.893444046 | Q87: -2.885112906 | R87: -2.921727916 | S87: -2.921836354
I88: 0.8 | J88: 32 | K88: 93 | L88: 3054 | M88: -469.9093659 | N88: -2.884365462 | O88: -2.872878242 | P88: -2.873202171 | Q88: -2.904571756 | R88: -2.916233315 | S88: -2.912354118
I89: 0.81 | J89: 51 | K89: 96 | L89: 2764 | M89: -469.9081218 | N89: -2.901290299 | O89: -2.901115431 | P89: -2.917290073 | Q89: -2.919111306 | R89: -2.866645158 | S89: -2.877072126
I90: 0.82 | J90: 67 | K90: 89 | L90: 2719 | M90: -469.907244 | N90: -2.912026645 | O90: -2.905923257 | P90: -2.938456687 | Q90: -2.904214116 | R90: -2.937870033 | S90: -2.905336462
I91: 0.83 | J91: 56 | K91: 90 | L91: 2715 | M91: -469.90701 | N91: -2.88052958 | O91: -2.908827562 | P91: -2.868382333 | Q91: -2.926254949 | R91: -2.88946604 | S91: -2.908388359
I92: 0.84 | J92: 80 | K92: 89 | L92: 2866 | M92: -469.9005327 | N92: -2.904165991 | O92: -2.92715026 | P92: -2.935208238 | Q92: -2.877655049 | R92: -2.884136962 | S92: -2.894131517
I93: 0.85 | J93: 5 | K93: 94 | L93: 2818 | M93: -469.8996281 | N93: -2.917846277 | O93: -2.922185736 | P93: -2.903673414 | Q93: -2.928514315 | R93: -2.878537243 | S93: -2.872984374
I94: 0.86 | J94: 65 | K94: 89 | L94: 2805 | M94: -469.8893887 | N94: -2.913378517 | O94: -2.914705041 | P94: -2.910892872 | Q94: -2.890576838 | R94: -2.853253894 | S94: -2.913268382
I95: 0.87 | J95: 17 | K95: 90 | L95: 2687 | M95: -469.8823284 | N95: -2.910608968 | O95: -2.907152407 | P95: -2.869676567 | Q95: -2.924866939 | R95: -2.899084304 | S95: -2.942697363
I96: 0.88 | J96: 82 | K96: 94 | L96: 2833 | M96: -469.8768706 | N96: -2.86634141 | O96: -2.926296951 | P96: -2.910850901 | Q96: -2.867541859 | R96: -2.912651683 | S96: -2.894492687
I97: 0.89 | J97: 13 | K97: 91 | L97: 2799 | M97: -469.8724141 | N97: -2.892445251 | O97: -2.89379978 | P97: -2.934542906 | Q97: -2.855732303 | R97: -2.902048784 | S97: -2.91225128
I98: 0.9 | J98: 84 | K98: 94 | L98: 2796 | M98: -469.8712818 | N98: -2.92043969 | O98: -2.904523126 | P98: -2.871472823 | Q98: -2.898120659 | R98: -2.883148145 | S98: -2.860790391
I99: 0.91 | J99: 55 | K99: 99 | L99: 3264 | M99: -469.8710027 | N99: -2.916861985 | O99: -2.929941185 | P99: -2.860509045 | Q99: -2.876990214 | R99: -2.905089164 | S99: -2.89130041
I100: 0.92 | J100: 71 | K100: 92 | L100: 2778 | M100: -469.8653462 | N100: -2.946643584 | O100: -2.911734773 | P100: -2.89215573 | Q100: -2.898131097 | R100: -2.924515091 | S100: -2.937480029
I101: 0.93 | J101: 64 | K101: 92 | L101: 2937 | M101: -469.8609693 | N101: -2.870932712 | O101: -2.95289465 | P101: -2.891831194 | Q101: -2.894625789 | R101: -2.897338059 | S101: -2.895507971
I102: 0.94 | J102: 26 | K102: 110 | L102: 3194 | M102: -469.8529554 | N102: -2.888214597 | O102: -2.938606091 | P102: -2.893646214 | Q102: -2.880709244 | R102: -2.940261602 | S102: -2.928330584
I103: 0.95 | J103: 35 | K103: 92 | L103: 2907 | M103: -469.8473678 | N103: -2.916647613 | O103: -2.92649474 | P103: -2.907682985 | Q103: -2.883065983 | R103: -2.850079637 | S103: -2.886277682
I104: 0.96 | J104: 62 | K104: 90 | L104: 2603 | M104: -469.8422485 | N104: -2.889032613 | O104: -2.884327249 | P104: -2.897370504 | Q104: -2.930300899 | R104: -2.926196621 | S104: -2.852766804
I105: 0.97 | J105: 30 | K105: 91 | L105: 2827 | M105: -469.8347077 | N105: -2.92343686 | O105: -2.925639304 | P105: -2.897799551 | Q105: -2.899493578 | R105: -2.853021711 | S105: -2.869320285
I106: 0.98 | J106: 100 | K106: 91 | L106: 2909 | M106: -469.764352 | N106: -2.874783324 | O106: -2.929771327 | P106: -2.882748691 | Q106: -2.958548443 | R106: -2.943427616 | S106: -2.90200313
I107: 0.99 | J107: 88 | K107: 94 | L107: 2861 | M107: -441.6854865 | N107: -2.901640363 | O107: -2.887112138 | P107: 2.746883601 | Q107: -2.879098266 | R107: -2.891880055 | S107: -2.899707912
I108: 1 | J108: 1 | K108: 98 | L108: 3110 | M108: -441.585967 | N108: -2.876760119 | O108: 2.759347639 | P108: -2.927049205 | Q108: -2.894186091 | R108: -2.859026235 | S108: -2.88220988

Sheet Progress
C4: iteration | D4: OFLow | E4: OFHigh | F4: LowPN | G4: HighPN
C5: 1 | D5: -345.9968893 | E5: 210.1262673 | F5: 27 | G5: 59
C6: 2 | D6: -364.4881008 | E6: 103.026211 | F6: 52 | G6: 49
C7: 3 | D7: -364.4881008 | E7: 43.29420196 | F7: 52 | G7: 3
C8: 4 | D8: -364.4881008 | E8: -4.939972481 | F8: 52 | G8: 32
C9: 5 | D9: -364.4881008 | E9: -55.0823781 | F9: 52 | G9: 29
C10: 6 | D10: -364.4881008 | E10: -97.25285952 | F10: 52 | G10: 37
C11: 7 | D11: -364.4881008 | E11: -125.4022055 | F11: 52 | G11: 43
C12: 8 | D12: -364.4881008 | E12: -148.9886494 | F12: 52 | G12: 11
C13: 9 | D13: -364.4881008 | E13: -172.6156709 | F13: 52 | G13: 54
C14: 10 | D14: -364.4881008 | E14: -193.9719009 | F14: 52 | G14: 15
C15: 11 | D15: -364.4881008 | E15: -209.8491518 | F15: 52 | G15: 57
C16: 12 | D16: -364.4881008 | E16: -220.7147492 | F16: 52 | G16: 60
C17: 13 | D17: -364.4881008 | E17: -231.8769934 | F17: 52 | G17: 20
C18: 14 | D18: -380.68398 | E18: -254.4721971 | F18: 25 | G18: 31
C19: 15 | D19: -418.1156638 | E19: -265.2012305 | F19: 15 | G19: 33
C20: 16 | D20: -418.1156638 | E20: -273.2186861 | F20: 15 | G20: 17
C21: 17 | D21: -418.1156638 | E21: -278.4863446 | F21: 15 | G21: 23
C22: 18 | D22: -418.1156638 | E22: -285.9440892 | F22: 15 | G22: 9
C23: 19 | D23: -421.4544731 | E23: -292.6368636 | F23: 4 | G23: 44
C24: 20 | D24: -421.4544731 | E24: -298.0295724 | F24: 4 | G24: 37
C25: 21 | D25: -424.9214901 | E25: -303.309516 | F25: 37 | G25: 7
C26: 22 | D26: -424.9214901 | E26: -312.7998098 | F26: 37 | G26: 32
C27: 23 | D27: -424.9214901 | E27: -321.5465877 | F27: 37 | G27: 1
C28: 24 | D28: -424.9214901 | E28: -331.6667079 | F28: 37 | G28: 29
C29: 25 | D29: -424.9214901 | E29: -334.6354122 | F29: 37 | G29: 43
C30: 26 | D30: -424.9214901 | E30: -341.1861047 | F30: 37 | G30: 49
C31: 27 | D31: -424.9214901 | E31: -346.525815 | F31: 37 | G31: 51
C32: 28 | D32: -424.9214901 | E32: -352.823781 | F32: 37 | G32: 2
C33: 29 | D33: -424.9214901 | E33: -359.5747671 | F33: 37 | G33: 57
C34: 30 | D34: -424.9214901 | E34: -362.5049245 | F34: 37 | G34: 51
C35: 31 | D35: -433.6151311 | E35: -365.0790042 | F35: 2 | G35: 1
C36: 32 | D36: -433.6151311 | E36: -370.7274092 | F36: 2 | G36: 57
C37: 33 | D37: -433.6151311 | E37: -377.0186987 | F37: 2 | G37: 41
C38: 34 | D38: -448.0424553 | E38: -380.68398 | F38: 45 | G38: 25
C39: 35 | D39: -448.0424553 | E39: -384.2874356 | F39: 45 | G39: 34
C40: 36 | D40: -456.9388802 | E40: -387.9595896 | F40: 50 | G40: 53
C41: 37 | D41: -456.9388802 | E41: -390.0733089 | F41: 50 | G41: 51
C42: 38 | D42: -466.5744572 | E42: -391.8719218 | F42: 42 | G42: 60
C43: 39 | D43: -466.5744572 | E43: -394.5612327 | F43: 42 | G43: 46
C44: 40 | D44: -466.5744572 | E44: -396.7653256 | F44: 42 | G44: 10
C45: 41 | D45: -466.5744572 | E45: -400.879517 | F45: 42 | G45: 59
C46: 42 | D46: -466.5744572 | E46: -405.1497442 | F46: 42 | G46: 25
C47: 43 | D47: -466.5744572 | E47: -407.0361573 | F47: 42 | G47: 40
C48: 44 | D48: -466.5744572 | E48: -409.6943077 | F48: 42 | G48: 28
C49: 45 | D49: -466.5744572 | E49: -414.411386 | F49: 42 | G49: 30
C50: 46 | D50: -468.3754534 | E50: -418.1950385 | F50: 13 | G50: 18
C51: 47 | D51: -468.3754534 | E51: -422.3577515 | F51: 13 | G51: 26
C52: 48 | D52: -468.3754534 | E52: -424.9214901 | F52: 13 | G52: 37
C53: 49 | D53: -468.3754534 | E53: -428.1968852 | F53: 13 | G53: 49
C54: 50 | D54: -468.3754534 | E54: -430.8619102 | F54: 13 | G54: 60
C55: 51 | D55: -468.5873934 | E55: -433.6151311 | F55: 10 | G55: 2
C56: 52 | D56: -468.5873934 | E56: -435.7589287 | F56: 10 | G56: 53
C57: 53 | D57: -468.7323213 | E57: -438.7063284 | F57: 19 | G57: 1
C58: 54 | D58: -468.7323213 | E58: -440.8344687 | F58: 19 | G58: 46
C59: 55 | D59: -468.7323213 | E59: -443.5575484 | F59: 19 | G59: 31
C60: 56 | D60: -468.7323213 | E60: -445.6723291 | F60: 19 | G60: 34
C61: 57 | D61: -468.7323213 | E61: -447.6969983 | F61: 19 | G61: 15
C62: 58 | D62: -468.7323213 | E62: -449.397448 | F62: 19 | G62: 38
C63: 59 | D63: -468.7323213 | E63: -451.496746 | F63: 19 | G63: 54
C64: 60 | D64: -468.7323213 | E64: -452.0806412 | F64: 19 | G64: 20
C65: 61 | D65: -468.7323213 | E65: -452.9097196 | F65: 19 | G65: 40
C66: 62 | D66: -468.7323213 | E66: -453.9247626 | F66: 19 | G66: 40
C67: 63 | D67: -468.7323213 | E67: -456.650316 | F67: 19 | G67: 58
C68: 64 | D68: -468.7806795 | E68: -457.6681875 | F68: 14 | G68: 29
C69: 65 | D69: -468.9353815 | E69: -459.4792104 | F69: 5 | G69: 32
C70: 66 | D70: -468.9353815 | E70: -459.9961335 | F70: 5 | G70: 47
C71: 67 | D71: -468.9353815 | E71: -460.4806081 | F71: 5 | G71: 44
C72: 68 | D72: -468.9353815 | E72: -461.937946 | F72: 5 | G72: 16
C73: 69 | D73: -468.9353815 | E73: -462.9421246 | F73: 5 | G73: 44
C74: 70 | D74: -468.9353815 | E74: -463.5939495 | F74: 5 | G74: 55
C75: 71 | D75: -468.948114 | E75: -464.5177267 | F75: 55 | G75: 56
C76: 72 | D76: -468.948114 | E76: -464.927721 | F76: 55 | G76: 11
C77: 73 | D77: -468.948114 | E77: -465.1894174 | F77: 55 | G77: 34
C78: 74 | D78: -469.0815154 | E78: -465.5771936 | F78: 51 | G78: 21
C79: 75 | D79: -469.0815154 | E79: -466.1543438 | F79: 51 | G79: 37
C80: 76 | D80: -469.0815154 | E80: -466.5289126 | F80: 51 | G80: 22
C81: 77 | D81: -469.0815154 | E81: -466.6707626 | F81: 51 | G81: 38
C82: 78 | D82: -469.0815154 | E82: -466.894811 | F82: 51 | G82: 48
C83: 79 | D83: -469.0815154 | E83: -467.1248434 | F83: 51 | G83: 17
C84: 80 | D84: -469.6631815 | E84: -467.3808591 | F84: 15 | G84: 40
C85: 81 | D85: -469.6631815 | E85: -467.489335 | F85: 15 | G85: 60
C86: 82 | D86: -469.6631815 | E86: -467.6153187 | F86: 15 | G86: 43
C87: 83 | D87: -469.6631815 | E87: -467.6971316 | F87: 15 | G87: 8
C88: 84 | D88: -469.7193512 | E88: -467.7997055 | F88: 49 | G88: 26
C89: 85 | D89: -469.7619182 | E89: -467.9348443 | F89: 16 | G89: 23
C90: 86 | D90: -469.764352 | E90: -468.0843392 | F90: 44 | G90: 40
C91: 87 | D91: -469.764352 | E91: -468.2107773 | F91: 44 | G91: 9
C92: 88 | D92: -469.764352 | E92: -468.4929126 | F92: 44 | G92: 37
C93: 89 | D93: -469.764352 | E93: -468.6554298 | F93: 44 | G93: 58
C94: 90 | D94: -469.764352 | E94: -468.7849987 | F94: 44 | G94: 46
C95: 91 | D95: -469.764352 | E95: -468.8659688 | F95: 44 | G95: 42

Sheet Doodle_1

Sheet Doodle_2
B1: 1 | C1: 61 | D1: -276.6950054 | E1: 51 | F1: 272.6828795 | G1: 41 | H1: -276.6950054
B2: 2 | C2: 61 | D2: 156.2247183 | E2: 46 | F2: 236.72069 | G2: 41 | H2: -276.6950054
B3: 3 | C3: 61 | D3: 264.5869044 | E3: 46 | F3: 236.72069 | G3: 41 | H3: -276.6950054
B4: 4 | C4: 61 | D4: -168.6998132 | E4: 9 | F4: 213.5731131 | G4: 41 | H4: -276.6950054
B5: 5 | C5: 61 | D5: 99.74678305 | E5: 14 | F5: 204.3347472 | G5: 41 | H5: -276.6950054
B6: 6 | C6: 61 | D6: -31.03079743 | E6: 23 | F6: 190.9041806 | G6: 41 | H6: -276.6950054
B7: 7 | C7: 61 | D7: 59.97752152 | E7: 42 | F7: 174.0760504 | G7: 41 | H7: -276.6950054
B8: 8 | C8: 61 | D8: -113.5561059 | E8: 51 | F8: 156.2247183 | G8: 41 | H8: -276.6950054
B9: 9 | C9: 61 | D9: -288.532239 | E9: 39 | F9: 135.573264 | G9: 51 | H9: -288.532239
B10: 10 | C10: 61 | D10: 364.1480492 | E10: 39 | F10: 135.573264 | G10: 51 | H10: -288.532239
B11: 11 | C11: 61 | D11: -212.9586357 | E11: 48 | F11: 133.2574917 | G11: 51 | H11: -288.532239 | L11: -50.05889331
B12: 12 | C12: 61 | D12: 23.04956492 | E12: 7 | F12: 105.7471743 | G12: 51 | H12: -288.532239
B13: 13 | C13: 61 | D13: -152.7028893 | E13: 45 | F13: 101.0987584 | G13: 51 | H13: -288.532239 | K13: x | L13: y
B14: 14 | C14: 61 | D14: -156.7584183 | E14: 9 | F14: 99.74678305 | G14: 51 | H14: -288.532239
B15: 15 | C15: 61 | D15: 55.35876272 | E15: 8 | F15: 92.9366606 | G15: 51 | H15: -288.532239 | K15: -5 | L15: =K15^4-16*K15^2+5*K15 -> 200 | M15: =L15-$L$11 -> 250.0588933
B16: 16 | C16: 61 | D16: -168.8347275 | E16: 55 | F16: 89.14412389 | G16: 51 | H16: -288.532239 | K16: -4.9 | L16: =K16^4-16*K16^2+5*K16 -> 167.8201 | M16: =L16-$L$11 -> 217.8789933
B17: 17 | C17: 61 | D17: -72.56280859 | E17: 52 | F17: 70.23870913 | G17: 51 | H17: -288.532239 | K17: -4.8 | L17: =K17^4-16*K17^2+5*K17 -> 138.2016 | M17: 188.2604933
B18: 18 | C18: 61 | D18: -27.36651129 | E18: 37 | F18: 69.2349899 | G18: 51 | H18: -288.532239 | K18: -4.7 | L18: 111.0281 | M18: 161.0869933
B19: 19 | C19: 61 | D19: -10.25106762 | E19: 25 | F19: 68.45312482 | G19: 51 | H19: -288.532239 | K19: -4.6 | L19: 86.1856 | M19: 136.2444933
B20: 20 | C20: 61 | D20: 158.794159 | E20: 25 | F20: 68.45312482 | G20: 51 | H20: -288.532239 | K20: -4.5 | L20: 63.5625 | M20: 113.6213933
B21: 21 | C21: 61 | D21: -22.07516011 | E21: 23 | F21: 59.97752152 | G21: 51 | H21: -288.532239 | K21: -4.4 | L21: 43.0496 | M21: 93.10849331
B22: 22 | C22: 61 | D22: -122.812053 | E22: 9 | F22: 55.35876272 | G22: 51 | H22: -288.532239 | K22: -4.3 | L22: 24.5401 | M22: 74.59899331
B23: 23 | C23: 61 | D23: 38.26354781 | E23: 54 | F23: 54.92360046 | G23: 51 | H23: -288.532239 | K23: -4.2 | L23: 7.9296 | M23: 57.98849331
B24: 24 | C24: 61 | D24: 198.1941431 | E24: 54 | F24: 54.92360046 | G24: 51 | H24: -288.532239 | K24: -4.1 | L24: -6.8839 | M24: 43.17499331
B25: 25 | C25: 61 | D25: -172.2990297 | E25: 53 | F25: 50.31643475 | G25: 51 | H25: -288.532239 | K25: -4 | L25: -20 | M25: 30.05889331
B26: 26 | C26: 61 | D26: -248.0160394 | E26: 35 | F26: 42.92650537 | G26: 51 | H26: -288.532239 | K26: -3.9 | L26: -31.5159 | M26: 18.54299331
B27: 27 | C27: 61 | D27: 25.21305256 | E27: 47 | F27: 41.88270484 | G27: 51 | H27: -288.532239 | K27: -3.8 | L27: -41.5264 | M27: 8.532493311
B28: 28 | C28: 61 | D28: -188.8594884 | E28: 38 | F28: 38.46851762 | G28: 51 | H28: -288.532239 | J28: =K28-K47 -> -1.908034669 | K28: -3.700820105 | L28: -50.05889333 | M28: -1.583675413e-08
B29: 29 | C29: 61 | D29: 248.9823384 | E29: 38 | F29: 38.46851762 | G29: 51 | H29: -288.532239 | K29: -3.6 | L29: -57.3984 | M29: -7.339506689
B30: 30 | C30: 61 | D30: -109.3392343 | E30: 9 | F30: 38.26354781 | G30: 51 | H30: -288.532239 | K30: -3.5 | L30: -63.4375 | M30: -13.37860669
B31: 31 | C31: 61 | D31: -103.5217655 | E31: 24 | F31: 34.06384302 | G31: 51 | H31: -288.532239 | K31: -3.4 | L31: -68.3264 | M31: -18.26750669
B32: 32 | C32: 61 | D32: -226.6645998 | E32: 35 | F32: 25.21305256 | G32: 51 | H32: -288.532239 | K32: -3.3 | L32: -72.1479 | M32: -22.08900669
B33: 33 | C33: 61 | D33: -90.00079428 | E33: 48 | F33: 23.04956492 | G33: 51 | H33: -288.532239 | K33: -3.2 | L33: -74.9824 | M33: -24.92350669
B34: 34 | C34: 61 | D34: 32.65472602 | E34: 48 | F34: 23.04956492 | G34: 51 | H34: -288.532239 | K34: -3.1 | L34: -76.9079 | M34: -26.84900669
B35: 35 | C35: 61 | D35: 289.0184493 | E35: 48 | F35: 23.04956492 | G35: 51 | H35: -288.532239 | K35: -3 | L35: -78 | M35: -27.94110669
B36: 36 | C36: 61 | D36: 5.494784435 | E36: 30 | F36: 19.45032829 | G36: 51 | H36: -288.532239 | K36: -2.9 | L36: -78.3319 | M36: -28.27300669
B37: 37 | C37: 61 | D37: -183.5340407 | E37: 17 | F37: 16.82362071 | G37: 51 | H37: -288.532239 | K37: -2.8 | L37: -77.9744 | M37: -27.91550669
B38: 38 | C38: 61 | D38: -97.45712424 | E38: 49 | F38: 8.626207098 | G38: 51 | H38: -288.532239 | K38: -2.7 | L38: -76.9959 | M38: -26.93700669
B39: 39 | C39: 61 | D39: -106.1501409 | E39: 48 | F39: 5.494784435 | G39: 51 | H39: -288.532239 | K39: -2.6 | L39: -75.4624 | M39: -25.40350669
B40: 40 | C40: 61 | D40: -39.66286678 | E40: 34 | F40: -2.491733822 | G40: 51 | H40: -288.532239 | K40: -2.5 | L40: -73.4375 | M40: -23.37860669
B41: 41 | C41: 61 | D41: -188.9001805 | E41: 11 | F41: -4.393048972 | G41: 51 | H41: -288.532239 | K41: -2.4 | L41: -70.9824 | M41: -20.92350669
B42: 42 | C42: 61 | D42: -258.5936574 | E42: 37 | F42: -10.25106762 | G42: 51 | H42: -288.532239 | K42: -2.3 | L42: -68.1559 | M42: -18.09700669
B43: 43 | C43: 61 | D43: 47.12756383 | E43: 37 | F43: -10.25106762 | G43: 51 | H43: -288.532239 | K43: -2.2 | L43: -65.0144 | M43: -14.95550669
B44: 44 | C44: 61 | D44: -148.0568688 | E44: 26 | F44: -21.68748055 | G44: 51 | H44: -288.532239 | K44: -2.1 | L44: -61.6119 | M44: -11.55300669
B45: 45 | C45: 61 | D45: -78.67739114 | E45: 25 | F45: -22.07516011 | G45: 51 | H45: -288.532239 | K45: -2 | L45: -58 | M45: -7.941106689
B46: 46 | C46: 61 | D46: -41.4964586 | E46: 19 | F46: -27.24917777 | G46: 51 | H46: -288.532239 | K46: -1.9 | L46: -54.2279 | M46: -4.169006689
B47: 47 | C47: 61 | D47: -37.11145397 | E47: 52 | F47: -27.36651129 | G47: 51 | H47: -288.532239 | K47: -1.792785437 | L47: -50.05889331 | M47: -2.48381582e-09
B48: 48 | C48: 61 | D48: -265.3236274 | E48: 2 | F48: -29.99492557 | G48: 51 | H48: -288.532239 | K48: -1.7 | L48: -46.3879 | M48: 3.670993311
B49: 49 | C49: 61 | D49: -149.7488527 | E49: 14 | F49: -31.03079743 | G49: 51 | H49: -288.532239 | K49: -1.6 | L49: -42.4064 | M49: 7.652493311
B50: 50 | C50: 61 | D50: -34.52680067 | E50: 21 | F50: -31.39460621 | G50: 51 | H50: -288.532239 | K50: -1.5 | L50: -38.4375 | M50: 11.62139331
B51: 51 | C51: 61 | D51: 51.9604284 | E51: 21 | F51: -31.39460621 | G51: 51 | H51: -288.532239 | K51: -1.4 | L51: -34.5184 | M51: 15.54049331
B52: 52 | C52: 61 | D52: -209.5614232 | E52: 43 | F52: -32.43175577 | G52: 51 | H52: -288.532239 | K52: -1.3 | L52: -30.6839 | M52: 19.37499331
B53: 53 | C53: 61 | D53: -113.1679019 | E53: 14 | F53: -34.52680067 | G53: 51 | H53: -288.532239 | K53: -1.2 | L53: -26.9664 | M53: 23.09249331
B54: 54 | C54: 61 | D54: -146.6867557 | E54: 1 | F54: -37.0627249 | G54: 51 | H54: -288.532239 | K54: -1.1 | L54: -23.3959 | M54: 26.66299331
B55: 55 | C55: 61 | D55: -152.8933852 | E55: 19 | F55: -37.11145397 | G55: 51 | H55: -288.532239 | K55: -1 | L55: -20 | M55: 30.05889331
B56: 56 | C56: 61 | D56: -251.3308669 | E56: 48 | F56: -39.66286678 | G56: 51 | H56: -288.532239 | K56: -0.9 | L56: -16.8039 | M56: 33.25499331
B57: 57 | C57: 61 | D57: 179.742183 | E57: 48 | F57: -39.66286678 | G57: 51 | H57: -288.532239 | K57: -0.8 | L57: -13.8304 | M57: 36.22849331
B58: 58 | C58: 61 | D58: -232.6070058 | E58: 25 | F58: -41.4964586 | G58: 51 | H58: -288.532239 | K58: -0.7 | L58: -11.0999 | M58: 38.95899331
B59: 59 | C59: 61 | D59: 167.0946406 | E59: 25 | F59: -41.4964586 | G59: 51 | H59: -288.532239 | K59: -0.6 | L59: -8.6304 | M59: 41.42849331
B60: 60 | C60: 61 | D60: -186.4260142 | E60: 57 | F60: -56.12295435 | G60: 51 | H60: -288.532239 | K60: -0.5 | L60: -6.4375 | M60: 43.62139331
B61: 61 | C61: 61 | D61: -22.81813775 | E61: 57 | F61: -56.12295435 | G61: 51 | H61: -288.532239 | K61: -0.4 | L61: -4.5344 | M61: 45.52449331
B62: 62 | C62: 61 | D62: -15.86321349 | E62: 57 | F62: -56.12295435 | G62: 51 | H62: -288.532239 | K62: -0.3 | L62: -2.9319 | M62: 47.12699331
B63: 63 | C63: 61 | D63: -212.501816 | E63: 55 | F63: -72.56280859 | G63: 51 | H63: -288.532239 | K63: -0.2 | L63: -1.6384 | M63: 48.42049331
B64: 64 | C64: 61 | D64: -106.5477578 | E64: 10 | F64: -74.97701757 | G64: 51 | H64: -288.532239 | K64: -0.1 | L64: -0.6599 | M64: 49.39899331
B65: 65 | C65: 61 | D65: -11.98334158 | E65: 10 | F65: -74.97701757 | G65: 51 | H65: -288.532239 | K65: -2.042810365e-14 | L65: -1.021405183e-13 | M65: 50.05889331
B66: 66 | C66: 61 | D66: -69.79202194 | E66: 10 | F66: -74.97701757 | G66: 51 | H66: -288.532239 | K66: 0.1 | L66: 0.3401 | M66: 50.39899331
B67: 67 | C67: 61 | D67: 75.61734742 | E67: 10 | F67: -74.97701757 | G67: 51 | H67: -288.532239 | K67: 0.2 | L67: 0.3616 | M67: 50.42049331
B68: 68 | C68: 61 | D68: -8.232781823 | E68: 10 | F68: -74.97701757 | G68: 51 | H68: -288.532239 | K68: 0.3 | L68: 0.0681 | M68: 50.12699331
B69: 69 | C69: 61 | D69: 365.7827015 | E69: 10 | F69: -74.97701757 | G69: 51 | H69: -288.532239 | K69: 0.4 | L69: -0.5344 | M69: 49.52449331
B70: 70 | C70: 61 | D70: 24.46258044 | E70: 10 | F70: -74.97701757 | G70: 51 | H70: -288.532239 | K70: 0.5 | L70: -1.4375 | M70: 48.62139331
B71: 71 | C71: 61 | D71: 55.75531683 | E71: 10 | F71: -74.97701757 | G71: 51 | H71: -288.532239 | K71: 0.6 | L71: -2.6304 | M71: 47.42849331
B72: 72 | C72: 61 | D72: -88.9637984 | E72: 26 | F72: -78.67739114 | G72: 51 | H72: -288.532239 | K72: 0.7 | L72: -4.0999 | M72: 45.95899331
B73: 73 | C73: 61 | D73: -73.73175021 | E73: 26 | F73: -78.67739114 | G73: 51 | H73: -288.532239 | K73: 0.8 | L73: -5.8304 | M73: 44.22849331
B74: 74 | C74: 61 | D74: -30.13668086 | E74: 26 | F74: -78.67739114 | G74: 51 | H74: -288.532239 | K74: 0.9 | L74: -7.8039 | M74: 42.25499331
B75: 75 | C75: 61 | D75: 36.53816149 | E75: 26 | F75: -78.67739114 | G75: 51 | H75: -288.532239 | K75: 1 | L75: -10 | M75: 40.05889331
B76: 76 | C76: 61 | D76: 90.70428627 | E76: 26 | F76: -78.67739114 | G76: 51 | H76: -288.532239 | K76: 1.1 | L76: -12.3959 | M76: 37.66299331
B77: 77 | C77: 61 | D77: 25.6193355 | E77: 26 | F77: -78.67739114 | G77: 51 | H77: -288.532239 | K77: 1.2 | L77: -14.9664 | M77: 35.09249331
B78: 78 | C78: 61 | D78: -208.0843398 | E78: 16 | F78: -82.46351413 | G78: 51 | H78: -288.532239 | K78: 1.3 | L78: -17.6839 | M78: 32.37499331
B79: 79 | C79: 61 | D79: -274.0367619 | E79: 28 | F79: -88.91348734 | G79: 51 | H79: -288.532239 | K79: 1.4 | L79: -20.5184 | M79: 29.54049331
B80: 80 | C80: 61 | D80: -116.6171954 | E80: 10 | F80: -88.9637984 | G80: 51 | H80: -288.532239 | K80: 1.5 | L80: -23.4375 | M80: =L80-$L$11 -> 26.62139331
B81: 81 | C81: 61 | D81: -126.5620732 | E81: 35 | F81: -90.00079428 | G81: 51 | H81: -288.532239 | K81: 1.6 | L81: =K81^4-16*K81^2+5*K81 -> -26.4064 | M81: 23.65249331
B82: 82 | C82: 61 | D82: -120.1695675 | E82: 58 | F82: -91.38990459 | G82: 51 | H82: -288.532239 | K82: 1.7 | L82: -29.3879 | M82: 20.67099331
B83: 83 | C83: 61 | D83: -243.9083674 | E83: 17 | F83: -97.45712424 | G83: 51 | H83: -288.532239 | K83: 1.8 | L83: -32.3424 | M83: 17.71649331
B84: 84 | C84: 61 | D84: 20.94954209 | E84: 17 | F84: -97.45712424 | G84: 51 | H84: -288.532239 | K84: 1.9 | L84: -35.2279 | M84: 14.83099331
B85: 85 | C85: 61 | D85: -54.73805389 | E85: 17 | F85: -97.45712424 | G85: 51 | H85: -288.532239 | K85: 2 | L85: -38 | M85: 12.05889331
B86: 86 | C86: 61 | D86: 75.47244701 | E86: 17 | F86: -97.45712424 | G86: 51 | H86: -288.532239 | K86: 2.1 | L86: -40.6119 | M86: 9.446993311
B87: 87 | C87: 61 | D87: -176.3001332 | E87: 9 | F87: -103.5217655 | G87: 51 | H87: -288.532239 | K87: 2.2 | L87: -43.0144 | M87: 7.044493311
B88: 88 | C88: 61 | D88: -91.42488123 | E88: 9 | F88: -103.5217655 | G88: 51 | H88: -288.532239 | K88: 2.3 | L88: -45.1559 | M88: 4.902993311
B89: 89 | C89: 61 | D89: -69.61360753 | E89: 9 | F89: -103.5217655 | G89: 51 | H89: -288.532239 | K89: 2.4 | L89: -46.9824 | M89: 3.076493311
B90: 90 | C90: 61 | D90: 460.4220012 | E90: 9 | F90: -103.5217655 | G90: 51 | H90: -288.532239 | K90: 2.5 | L90: -48.4375 | M90: 1.621393311
B91: 91 | C91: 61 | D91: -43.45902032 | E91: 9 | F91: -103.5217655 | G91: 51 | H91: -288.532239 | K91: 2.6 | L91: -49.4624 | M91: 0.5964933106
B92: 92 | C92: 61 | D92: -47.77079451 | E92: 9 | F92: -103.5217655 | G92: 51 | H92: -288.532239 | K92: 2.746802736 | L92: -50.05889331 | M92: 0
B93: 93 | C93: 61 | D93: -60.03667442 | E93: 9 | F93: -103.5217655 | G93: 51 | H93: -288.532239 | K93: 2.8 | L93: -49.9744 | M93: 0.08449331057
B94: 94 | C94: 61 | D94: -161.9455524 | E94: 49 | F94: -106.1501409 | G94: 51 | H94: -288.532239 | K94: 2.9 | L94: -49.3319 | M94: 0.7269933106
B95: 95 | C95: 61 | D95: -79.62575623 | E95: 49 | F95: -106.1501409 | G95: 51 | H95: -288.532239 | K95: 3 | L95: -48 | M95: 2.058893311
B96: 96 | C96: 61 | D96: -61.91835855 | E96: 49 | F96: -106.1501409 | G96: 51 | H96: -288.532239 | K96: 3.1 | L96: -45.9079 | M96: 4.150993311
B97: 97 | C97: 61 | D97: 53.05451832 | E97: 49 | F97: -106.1501409 | G97: 51 | H97: -288.532239 | K97: 3.2 | L97: -42.9824 | M97: 7.076493311
B98: 98 | C98: 61 | D98: -151.9578085 | E98: 55 | F98: -106.5477578 | G98: 51 | H98: -288.532239 | K98: 3.3 | L98: -39.1479 | M98: 10.91099331
B99: 99 | C99: 61 | D99: -237.3042389 | E99: 38 | F99: -109.3392343 | G99: 51 | H99: -288.532239 | K99: 3.4 | L99: -34.3264 | M99: 15.73249331
B100: 100 | C100: 61 | D100: 119.9322728 | E100: 38 | F100: -109.3392343 | G100: 51 | H100: -288.532239 | K100: 3.5 | L100: -28.4375 | M100: 21.62139331
K101: 3.6 | L101: -21.3984
K102: 3.7 | L102: -13.1239
K103: 3.8 | L103: -3.5264
K104: 3.9 | L104: 7.4841
K105: 4 | L105: 20
K106: 4.1 | L106: 34.1161
K107: 4.2 | L107: 49.9296
K108: 4.3 | L108: 67.5401
K109: 4.4 | L109: 87.0496
K110: 4.5 | L110: 108.5625
K111: 4.6 | L111: 132.1856
K112: 4.7 | L112: 158.0281
K113: 4.8 | L113: 186.2016
K114: 4.9 | L114: 216.8201
K115: 5 | L115: 250
